bitfinex-derivatives/quotes_SOLF0:USTF0_20251101
["timestamp","ask_amount","ask_price","bid_price","bid_amount"]
[1762019299603,2.05624029,185.28,185.26,2.82]
[1762019299798,2.05624029,185.27,185.26,2.82]
[1762019300199,2.05624029,185.27,185.25,2.82]
[1762019300415,2.05624029,185.26,185.25,2.82]
[1762019301413,2.04724064,185.26,185.25,2.82]
[1762019303303,2.04605353,185.26,185.25,2.82]
[1762019305113,2.04344357,185.26,185.25,2.82]
[1762019305314,4.8581,185.32,185.25,2.82]
[1762019307913,4.8581,185.32,185.26,2.84]
[1762019317423,2.02706701,185.31,185.26,2.84]
[1762019317620,2.02706701,185.3,185.26,2.84]
[1762019317922,2.02706701,185.29,185.26,2.84]
[1762019318122,4.8581,185.32,185.26,2.84]
[1762019318421,2.02757362,185.31,185.26,2.84]
[1762019318614,2.02757362,185.3,185.26,2.84]
[1762019318815,2.02757362,185.29,185.26,2.84]
[1762019319015,4.8581,185.32,185.26,2.84]
[1762019319316,2.0252156,185.31,185.26,2.84]
[1762019319518,2.0252156,185.3,185.26,2.84]
[1762019319811,2.0252156,185.29,185.26,2.84]
[1762019320115,4.8581,185.32,185.26,2.84]
[1762019320316,2.02511777,185.31,185.26,2.84]
[1762019320619,2.02511777,185.3,185.26,2.84]
[1762019320918,2.02511777,185.29,185.26,2.84]
[1762019321123,2.02511777,185.28,185.26,2.84]
[1762019321313,4.8581,185.32,185.26,2.84]
[1762019321514,2.02514636,185.31,185.26,2.84]
[1762019321715,2.02514636,185.3,185.26,2.84]
[1762019321916,2.02514636,185.29,185.26,2.84]
[1762019322119,2.02514636,185.28,185.26,2.84]
[1762019322322,4.8581,185.32,185.26,2.84]
[1762019322520,2.02530914,185.31,185.26,2.84]
[1762019322823,2.02530914,185.3,185.26,2.84]
[1762019323021,2.02530914,185.29,185.26,2.84]
[1762019323221,2.02530914,185.28,185.26,2.84]
[1762019323415,4.8581,185.32,185.26,2.84]
[1762019323616,2.02540732,185.31,185.27,2.86]
[1762019323821,2.02540732,185.3,185.27,2.86]
[1762019324021,2.75,185.34,185.27,2.86]
[1762019324223,2.02508961,185.33,185.28,2.86]
[1762019324424,2.02508961,185.32,185.28,2.86]
[1762019324726,2.02508961,185.31,185.28,2.86]
[1762019325025,2.02508961,185.3,185.28,2.86]
[1762019325220,2.75,185.34,185.28,2.86]
[1762019325522,2.75,185.32,185.27,76.28]
[1762019325823,2.75,185.3,185.27,79.14]
[1762019326023,2.02482031,185.29,185.27,79.14]
[1762019326222,2.02482031,185.28,185.27,79.14]
[1762019327015,2.02482031,185.28,185.27,76.28]
[1762019329930,2.02512318,185.28,185.27,76.28]
[1762019331623,2.02512318,185.28,185.27,79.14]
[1762019331829,2.02595947,185.28,185.27,79.14]
[1762019332532,2.02627388,185.28,185.27,79.14]
[1762019332834,2.02634362,185.28,185.27,79.14]
[1762019333028,4.77634362,185.28,185.27,76.28]
[1762019335034,2.75,185.28,185.27,76.28]
[1762019335331,4.77665875,185.28,185.27,76.28]
[1762019335532,4.77702037,185.28,185.27,76.28]
[1762019336926,2.75,185.27,185.24,2.86]
[1762019337130,4.77702037,185.26,185.24,2.86]
[1762019337328,2.02716378,185.25,185.24,7.07966141]
[1762019338538,2.02807181,185.25,185.24,7.07966141]
[1762019339634,4.77807181,185.25,185.23,76.28]
[1762019339836,4.77807181,185.24,185.23,76.28]
[1762019340037,4.77807181,185.24,185.23,80.50286589]
[1762019340337,4.77777656,185.24,185.23,76.28]
[1762019340533,2.75,185.23,185.19,2.86]
[1762019340839,4.77777679,185.22,185.2,4.22388918]
[1762019341040,2.02777679,185.21,185.19,79.14]
[1762019341243,2.75,185.22,185.2,4.2240178]
[1762019341540,2.75,185.22,185.21,4.2240178]
[1762019341731,4.77632933,185.22,185.21,4.2240178]
[1762019342441,4.77532747,185.22,185.2,4.2240178]
[1762019342633,2.02532747,185.21,185.2,2.86]
[1762019342843,2.02532747,185.21,185.2,9.17984738]
[1762019344027,4.77532747,185.21,185.2,6.31984738]
[1762019344228,4.77532747,185.21,185.2,4.22134217]
[1762019344630,4.77360316,185.21,185.2,4.22134217]
[1762019344932,2.75,185.2,185.13,5.04180883]
[1762019345142,4.77360316,185.19,185.15,2.86]
[1762019345331,2.09850521,185.28,185.16,6.31769321]
[1762019345332,4.77360316,185.18,185.16,6.31769321]
[1762019345531,2.02200205,185.17,185.16,6.31769321]
[1762019345738,4.77192875,185.17,185.16,2.09850521]
[1762019345936,2.02192875,185.17,185.16,2.09850521]
[1762019346533,4.79192875,185.17,185.16,2.09850521]
[1762019346726,2.02192875,185.17,185.16,4.98850521]
[1762019347127,2.77,185.2,185.16,4.98850521]
[1762019347327,2.01945584,185.19,185.16,2.89]
[1762019347533,2.77,185.2,185.16,2.89]
[1762019347534,2.77,185.2,185.18,2.09850521]
[1762019350548,2.77,185.2,185.19,2.09850521]
[1762019351337,10.02155747,185.31,185.19,2.09850521]
[1762019351543,10.02155747,185.31,185.23,5.21e-06]
[1762019352043,4.8607,185.22,185.19,2.09850521]
[1762019352248,10.02155747,185.31,185.15,2.89]
[1762019352439,21.83626268,185.32,185.19,2.09850521]
[1762019352841,21.83626268,185.32,185.15,2.89]
[1762019353148,4.861,185.21,185.19,2.09850521]
[1762019353447,1.28,185.2,185.19,2.09850521]
[1762019357244,1.28,185.18,185.17,2.09850521]
[1762019357842,4.8615,185.19,185.17,4.98850521]
[1762019358048,1.28,185.21,185.17,2.09850521]
[1762019358246,1.28,185.21,185.2,2.09850521]
[1762019359153,3.41736506,185.21,185.2,2.09850521]
[1762019359353,2.13736506,185.21,185.2,4.98850521]
[1762019359653,6.14,185.24,185.21,2.89]
[1762019362844,6.14,185.24,185.21,4.98850521]
[1762019363243,6.14,185.24,185.22,2.96]
[1762019365354,1.26,185.23,185.21,2.09850521]
[1762019365652,1.26,185.23,185.21,5.05850521]
[1762019367156,1.26,185.23,185.21,2.96]
[1762019368555,6.12,185.24,185.21,2.96]
[1762019369057,1.26,185.23,185.18,2.09850521]
[1762019369357,1.26,185.22,185.18,5.05850521]
[1762019370047,1.26,185.22,185.18,2.96]
[1762019371468,1.26,185.2,185.16,5.05850521]
[1762019371659,2.12454957,185.19,185.17,2.96]
[1762019371858,1.26,185.2,185.17,2.96]
[1762019371859,2.12454957,185.18,185.17,2.96]
[1762019372157,3.38454957,185.18,185.14,2.96]
[1762019372359,2.12454957,185.17,185.14,2.96]
[1762019372654,2.12454957,185.16,185.14,2.96]
[1762019372860,2.12454957,185.15,185.14,2.96]
[1762019373059,1.26,185.18,185.14,2.96]
[1762019373360,2.1240046,185.17,185.14,2.96]
[1762019373562,2.1240046,185.16,185.14,2.96]
[1762019373753,2.09850521,185.26,185.14,2.96]
[1762019373754,2.1240046,185.15,185.14,2.96]
[1762019374551,2.12479411,185.15,185.14,2.96]
[1762019375352,2.12501713,185.15,185.14,2.96]
[1762019377057,2.12624905,185.15,185.14,2.96]
[1762019377655,6.1208,185.21,185.14,2.96]
[1762019377959,3.38680138,185.2,185.14,2.96]
[1762019378256,1.26,185.18,185.14,2.96]
[1762019378462,2.12680138,185.17,185.14,2.96]
[1762019378663,2.12680138,185.16,185.14,2.96]
[1762019378862,2.12723142,185.15,185.14,2.96]
[1762019382354,2.13752642,185.15,185.14,2.96]
[1762019386769,2.13881282,185.15,185.14,2.96]
[1762019387562,2.13905927,185.15,185.14,2.96]
[1762019388860,2.13934542,185.15,185.14,2.96]
[1762019391762,6.1218,185.18,185.14,2.96]
[1762019391969,1.26,185.16,185.14,2.96]
[1762019392268,2.13956346,185.15,185.14,2.96]
[1762019392671,2.13956346,185.15,185.13,2.9]
[1762019392873,2.13956346,185.14,185.13,2.9]
[1762019393074,2.13956346,185.14,185.12,4.15507867]
[1762019393371,1.26,185.16,185.13,2.9]
[1762019393563,2.13922651,185.15,185.13,2.9]
[1762019393765,2.13922651,185.14,185.13,2.9]
[1762019394770,2.13910737,185.14,185.13,2.9]
[1762019395077,2.13910656,185.14,185.13,2.9]
[1762019395876,2.13899092,185.14,185.13,2.9]
[1762019397074,2.13877579,185.14,185.13,2.9]
[1762019397676,2.13927903,185.14,185.13,2.9]
[1762019398675,2.1391793,185.14,185.13,2.9]
[1762019399076,4.8618,185.18,185.13,2.9]
[1762019399375,2.13939843,185.17,185.13,2.9]
[1762019399571,2.13939843,185.16,185.13,2.9]
[1762019399773,2.13939843,185.15,185.13,2.9]
[1762019399970,2.13939843,185.14,185.13,2.9]
[1762019400481,2.13932164,185.14,185.13,2.9]
[1762019401686,1.26,185.17,185.13,2.9]
[1762019401890,3.4002614,185.16,185.13,2.9]
[1762019402076,2.1402614,185.15,185.13,2.9]
[1762019402282,2.1402614,185.14,185.13,2.9]
[1762019404088,4.8618,185.18,185.13,2.9]
[1762019404289,3.40075928,185.17,185.13,2.9]
[1762019404489,2.14075928,185.16,185.13,2.9]
[1762019404787,2.14075928,185.15,185.13,2.9]
[1762019404991,2.14075928,185.14,185.13,2.9]
[1762019407291,2.14075928,185.14,185.13,7.05361024]
[1762019407790,2.14075928,185.14,185.13,2.9]
[1762019407983,2.14313823,185.14,185.13,4.15361024]
[1762019408184,2.14313823,185.14,185.12,4.15361024]
[1762019408386,2.1433555,185.13,185.11,9.34319449]
[1762019408583,1.28,185.17,185.13,2.73]
[1762019408782,2.14335799,185.16,185.14,2.73]
[1762019408993,2.14335799,185.15,185.14,2.73]
[1762019409691,2.13057337,185.15,185.14,2.73]
[1762019411198,3.41091434,185.15,185.12,4.15567751]
[1762019411495,2.13091434,185.14,185.13,6.88567751]
[1762019411699,2.13091434,185.14,185.13,2.73]
[1762019411888,2.13091434,185.14,185.13,6.88567751]
[1762019412085,2.13091434,185.14,185.13,2.73]
[1762019412390,2.13091434,185.14,185.13,6.88567751]
[1762019412590,2.13091434,185.14,185.13,2.73]
[1762019412897,2.13091434,185.14,185.13,6.88567751]
[1762019413098,2.13091434,185.14,185.13,2.73]
[1762019413395,2.13249406,185.14,185.13,4.15567751]
[1762019413896,2.13249406,185.14,185.13,6.88567751]
[1762019414098,6.1409,185.21,185.14,2.73]
[1762019414295,6.1409,185.21,185.16,2.73]
[1762019414490,1.28,185.2,185.17,2.73]
[1762019414796,1.28,185.2,185.15,65.39]
[1762019414994,1.28,185.2,185.16,2.73]
[1762019415195,1.28,185.19,185.16,2.73]
[1762019415795,1.28,185.19,185.15,65.39]
[1762019416001,1.28,185.17,185.14,76.32]
[1762019416202,1.28,185.17,185.15,4.16282022]
[1762019416497,1.28,185.17,185.14,79.05]
[1762019416700,1.28,185.17,185.15,4.16439444]
[1762019417287,1.28,185.17,185.14,79.05]
[1762019418095,4.8611,185.21,185.15,2.73]
[1762019418291,1.28,185.21,185.14,76.32]
[1762019418496,1.28,185.21,185.15,4.16453791]
[1762019418702,1.28,185.19,185.15,2.73]
[1762019418901,1.28,185.19,185.15,6.89474259]
[1762019419104,1.28,185.19,185.15,2.73]
[1762019420608,1.28,185.19,185.16,4.21421727]
[1762019420794,1.28,185.19,185.15,2.73]
[1762019421001,1.28,185.19,185.16,4.21421727]
[1762019421201,1.28,185.19,185.15,2.73]
[1762019421402,1.28,185.19,185.16,4.21424972]
[1762019421598,1.28,185.19,185.15,2.73]
[1762019421799,1.28,185.19,185.16,4.21427659]
[1762019422001,1.28,185.19,185.15,2.73]
[1762019422300,1.28,185.22,185.17,2.93]
[1762019424009,1.28,185.2,185.17,2.93]
[1762019424511,1.28,185.2,185.14,2.93]
[1762019424713,1.28,185.2,185.15,4.21411]
[1762019425012,1.28,185.2,185.14,2.93]
[1762019425308,1.28,185.2,185.15,4.21411]
[1762019425510,1.28,185.2,185.14,2.93]
[1762019425704,1.28,185.2,185.15,7.14417811]
[1762019425906,4.8616,185.19,185.15,2.93]
[1762019426209,2.11399922,185.18,185.15,2.93]
[1762019426411,2.11399922,185.17,185.16,7.14422185]
[1762019426811,1.28,185.23,185.17,2.93]
[1762019427013,4.8609,185.21,185.17,2.93]
[1762019427211,2.11433762,185.2,185.17,2.93]
[1762019427410,2.11433762,185.19,185.17,2.93]
[1762019427608,2.1142957,185.18,185.17,2.93]
[1762019427812,2.1142957,185.18,185.17,7.14357314]
[1762019428014,4.8609,185.21,185.18,2.93]
[1762019428311,2.11464579,185.2,185.18,2.93]
[1762019428514,2.11464579,185.19,185.18,2.93]
[1762019429716,2.11428992,185.19,185.18,2.93]
[1762019430617,8.25561502,185.19,185.14,2.93]
[1762019430813,2.11411502,185.18,185.15,7.14291017]
[1762019431019,2.11411502,185.17,185.15,2.93]
[1762019431214,2.11345077,185.16,185.15,2.93]
[1762019431515,2.11345077,185.16,185.15,7.1429425]
[1762019431815,2.11345077,185.16,185.15,2.93]
[1762019432621,2.11439851,185.16,185.15,2.93]
[1762019433518,2.11449425,185.16,185.15,2.93]
[1762019434909,2.11449425,185.16,185.12,2.93]
[1762019435110,1.28,185.17,185.14,2.93]
[1762019435324,2.11420099,185.16,185.14,2.93]
[1762019435514,2.11420099,185.15,185.14,2.93]
[1762019435710,2.11420099,185.15,185.14,7.142701]
[1762019436216,2.11426854,185.15,185.14,7.142701]
[1762019436524,1.28,185.17,185.14,7.142701]
[1762019436725,2.11415636,185.16,185.15,6.9325538]
[1762019437731,2.11422986,185.16,185.15,6.93255792]
[1762019437912,2.11422986,185.16,185.15,2.72]
[1762019441529,2.11422986,185.16,185.15,6.9326588]
[1762019442423,2.11422986,185.16,185.15,6.93269061]
[1762019443731,2.11422986,185.16,185.15,6.93273638]
[1762019444126,2.11422986,185.16,185.15,2.72]
[1762019444331,2.09757537,185.16,185.15,2.72]
[1762019444519,6.1418,185.18,185.15,2.72]
[1762019444721,2.09757323,185.17,185.15,2.72]
[1762019445020,2.09757323,185.16,185.15,2.72]
[1762019445532,2.09757323,185.16,185.15,6.93274597]
[1762019451636,6.1413,185.2,185.15,6.93274597]
[1762019451841,3.37811142,185.19,185.11,51.62213858]
[1762019452036,2.09811142,185.18,185.12,4.21287319]
[1762019452232,2.09811142,185.17,185.14,2.72]
[1762019452438,2.09778099,185.16,185.14,2.72]
[1762019452625,2.09778099,185.15,185.14,2.72]
[1762019452830,2.09778099,185.15,185.14,6.93284515]
[1762019453239,1.28,185.19,185.15,2.72]
[1762019453440,2.09795919,185.18,185.15,2.72]
[1762019453739,2.09795919,185.17,185.15,2.72]
[1762019453938,2.09795919,185.16,185.15,2.72]
[1762019457243,2.09787254,185.16,185.15,2.72]
[1762019457534,1.28,185.19,185.15,2.72]
[1762019457743,3.37725333,185.18,185.15,2.72]
[1762019457940,2.09725333,185.17,185.15,2.72]
[1762019458142,1.28,185.18,185.15,2.72]
[1762019458340,2.0971551,185.17,185.15,2.72]
[1762019458641,2.0971551,185.16,185.15,2.72]
[1762019458839,1.28,185.15,185.13,2.72]
[1762019459142,3.37721011,185.14,185.12,2.72]
[1762019459337,1.28,185.14,185.13,4.21235608]
[1762019459543,2.09662962,185.14,185.13,4.21235608]
[1762019459844,2.09662677,185.14,185.13,6.93235608]
[1762019460046,2.09662677,185.14,185.13,2.72]
[1762019460844,3.37662677,185.14,185.12,4.21240873]
[1762019461037,2.09662677,185.13,185.12,2.72]
[1762019461238,1.28,185.12,185.05,0.36474109]
[1762019461434,1.28,185.07,185.04,2.72]
[1762019461648,2.09619927,185.06,185.05,6.93227775]
[1762019461843,2.09619927,185.06,185.05,2.72]
[1762019462244,1.28,185.05,185.02,2.72]
[1762019462542,2.09619927,185.04,185.02,2.72]
[1762019462748,2.09619927,185.03,185.02,2.72]
[1762019463145,2.09619927,185.03,184.93,6.7186994]
[1762019463442,2.09619927,185.02,184.98,2.72]
[1762019463648,2.09619927,185.01,184.98,2.72]
[1762019463840,2.09619927,185.0,184.98,2.72]
[1762019464040,2.09619927,184.99,184.98,2.72]
[1762019464750,2.17459493,184.99,184.98,2.72]
[1762019465545,2.17271165,184.99,184.98,2.72]
[1762019465951,2.17282291,184.99,184.98,2.72]
[1762019467252,1.28,185.05,184.98,2.72]
[1762019467438,2.17022446,185.04,184.98,2.72]
[1762019467643,2.16887715,185.03,184.98,2.72]
[1762019467844,2.16887715,185.02,184.98,2.72]
[1762019468150,2.16887715,185.01,184.98,2.72]
[1762019468346,2.16887715,185.0,184.98,2.72]
[1762019468554,2.10446479,185.06,184.98,2.72]
[1762019468752,2.16889504,185.05,184.98,2.72]
[1762019469051,2.16889504,185.04,184.98,2.72]
[1762019469251,2.16889504,185.03,184.98,2.72]
[1762019469453,2.16889504,185.02,184.98,2.72]
[1762019469652,2.10446479,185.06,184.98,2.72]
[1762019469854,2.16550223,185.05,184.98,2.72]
[1762019470054,2.16550473,185.04,184.98,2.72]
[1762019470258,2.16550473,185.03,184.98,2.72]
[1762019470554,2.16550473,185.02,184.98,2.72]
[1762019470850,2.10446479,185.06,184.98,2.72]
[1762019471051,2.16627592,185.05,184.98,2.72]
[1762019471253,2.16627592,185.04,184.98,2.72]
[1762019471546,2.16627592,185.03,184.98,2.72]
[1762019471752,3.38446479,185.08,184.98,2.72]
[1762019471953,2.16591179,185.07,184.98,2.72]
[1762019472153,2.16591179,185.06,184.98,2.72]
[1762019472349,2.16591179,185.05,184.98,2.72]
[1762019472554,2.16591179,185.04,184.98,2.72]
[1762019472747,2.16591179,185.03,184.98,2.72]
[1762019472944,3.38446479,185.08,184.98,2.72]
[1762019473143,2.16548405,185.07,184.98,2.72]
[1762019473344,2.10446479,185.05,184.98,2.72]
[1762019473658,2.10446479,185.0,184.96,2.88]
[1762019473857,2.16548405,184.99,184.96,2.88]
[1762019474152,4.97996451,185.08,184.96,2.88]
[1762019474153,3.38446479,185.08,184.96,2.88]
[1762019474357,2.16400089,185.07,184.96,2.88]
[1762019474557,2.16400089,185.06,184.96,2.88]
[1762019474758,2.10446479,185.08,184.94,0.94074394]
[1762019474759,1.28,185.04,184.97,2.88]
[1762019475057,1.28,185.02,184.97,2.88]
[1762019475258,1.28,185.0,184.94,3.82074394]
[1762019475458,2.16400089,184.99,184.95,2.88]
[1762019475659,1.28,185.0,184.95,2.88]
[1762019475956,2.16269088,184.99,184.95,2.88]
[1762019476162,2.16269088,184.98,184.95,2.88]
[1762019476361,1.28,184.99,184.95,2.88]
[1762019476547,2.16167745,184.98,184.95,2.88]
[1762019476752,2.16149026,184.97,184.95,2.88]
[1762019476952,2.16122935,184.96,184.95,2.88]
[1762019477252,1.28,184.98,184.95,2.88]
[1762019477453,2.16000932,184.97,184.95,2.88]
[1762019477760,1.28,184.98,184.95,2.88]
[1762019477761,2.16000932,184.96,184.95,2.88]
[1762019478359,1.28,184.95,184.91,2.88]
[1762019478560,2.16000932,184.94,184.89,2.88]
[1762019478756,2.16000932,184.93,184.89,2.88]
[1762019478959,2.10446479,184.96,184.89,2.88]
[1762019479154,2.15938345,184.95,184.89,2.88]
[1762019479361,2.15826723,184.94,184.89,2.88]
[1762019479556,2.10446479,184.96,184.89,2.88]
[1762019479764,2.10446479,184.99,184.89,2.88]
[1762019480064,2.15885798,184.98,184.89,2.88]
[1762019480267,2.10446479,184.99,184.89,2.88]
[1762019480564,2.15815906,184.98,184.89,2.88]
[1762019480756,2.10446479,184.99,184.89,2.88]
[1762019480957,2.15839479,184.98,184.91,2.69]
[1762019481154,2.10446479,184.99,184.91,2.69]
[1762019481350,2.15791961,184.98,184.91,2.69]
[1762019481549,2.10446479,184.99,184.91,2.69]
[1762019481761,2.15790662,184.98,184.91,2.69]
[1762019481957,2.15790662,184.97,184.91,2.69]
[1762019482164,2.10446479,184.99,184.91,2.69]
[1762019482364,2.15754946,184.98,184.91,2.69]
[1762019482664,2.10446479,184.99,184.91,2.69]
[1762019482860,2.15755132,184.98,184.91,2.69]
[1762019483062,2.10446479,184.99,184.91,2.69]
[1762019483259,2.15726406,184.98,184.91,2.69]
[1762019483464,2.10446479,185.02,184.93,2.69]
[1762019483654,2.15774327,185.01,184.93,2.69]
[1762019483859,2.15774327,185.0,184.93,2.69]
[1762019484051,6.67219409,185.12,184.91,36.0]
[1762019484052,2.10446479,185.05,184.95,2.69]
[1762019484255,2.15819144,185.04,184.95,2.69]
[1762019484459,2.15819144,185.03,184.95,2.69]
[1762019484662,8.24916479,185.07,184.95,2.69]
[1762019484862,2.15993755,185.06,184.95,2.69]
[1762019485164,2.15993755,185.05,184.97,2.69]
[1762019485372,2.16019834,185.04,184.97,2.69]
[1762019485560,8.24916479,185.07,184.97,2.69]
[1762019485765,2.16046198,185.06,184.97,2.69]
[1762019485969,2.16046198,185.05,184.97,2.69]
[1762019486162,2.16046198,185.04,184.97,2.69]
[1762019486468,2.16046198,185.03,184.97,2.69]
[1762019486668,8.24916479,185.07,184.97,2.69]
[1762019486865,2.16075435,185.06,184.99,2.69]
[1762019487065,2.16075435,185.05,184.99,2.69]
[1762019487259,2.10446479,185.11,184.99,2.69]
[1762019487464,2.16159731,185.1,184.99,2.69]
[1762019487664,2.16159731,185.09,184.99,2.69]
[1762019487863,2.16159731,185.08,185.03,2.69]
[1762019488162,3.38446479,185.11,185.03,2.69]
[1762019488363,2.1626518,185.1,185.03,2.69]
[1762019488564,2.1626518,185.09,185.03,2.69]
[1762019488768,3.4426518,185.08,185.03,2.69]
[1762019488969,2.1626518,185.07,185.03,2.69]
[1762019489271,1.28,185.08,185.03,2.69]
[1762019489466,2.16280447,185.07,185.03,2.69]
[1762019489670,3.38446479,185.11,185.03,2.69]
[1762019489870,2.16276316,185.1,185.03,2.69]
[1762019490070,2.16276316,185.09,185.03,2.69]
[1762019490369,2.16276316,185.08,185.03,2.69]
[1762019490560,2.16276316,185.07,185.03,2.69]
[1762019490759,3.38446479,185.11,185.03,2.69]
[1762019490966,2.16303546,185.1,185.03,2.69]
[1762019491164,2.16303546,185.09,185.03,2.69]
[1762019491374,2.16350543,185.08,185.03,2.69]
[1762019491669,3.38446479,185.11,185.03,2.69]
[1762019491872,2.16338353,185.1,185.03,2.69]
[1762019492072,2.16338353,185.09,185.03,2.69]
[1762019492258,2.16338353,185.08,185.03,2.69]
[1762019492459,2.16338353,185.07,185.03,2.69]
[1762019492664,3.38446479,185.11,185.03,2.69]
[1762019492878,2.16435465,185.1,185.03,2.69]
[1762019493065,3.44442375,185.09,185.03,2.69]
[1762019493272,1.28,185.07,185.03,2.69]
[1762019493473,2.16514324,185.06,185.03,2.69]
[1762019493675,1.28,185.07,185.03,2.69]
[1762019493877,2.1652256,185.06,185.03,2.69]
[1762019494073,2.16513462,185.05,185.03,2.69]
[1762019494277,1.28,185.07,185.03,2.69]
[1762019494577,2.16572253,185.06,185.03,2.69]
[1762019494779,2.16572253,185.05,185.03,2.69]
[1762019495075,1.28,185.07,185.03,2.69]
[1762019495290,2.16625846,185.06,185.03,2.69]
[1762019495468,2.16625846,185.05,185.03,2.69]
[1762019495669,6.1437,185.1,185.03,2.69]
[1762019495871,2.16680075,185.09,185.03,2.69]
[1762019496072,2.16680075,185.08,185.03,2.69]
[1762019496271,2.16680075,185.07,185.03,2.69]
[1762019496471,2.16680075,185.06,185.03,2.69]
[1762019496669,6.1437,185.1,185.03,2.69]
[1762019496870,2.16763789,185.09,185.03,2.69]
[1762019497071,2.16763789,185.08,185.03,2.69]
[1762019497367,2.16763789,185.07,185.03,2.69]
[1762019497676,2.16763789,185.06,185.03,2.69]
[1762019497877,1.28,185.1,185.03,2.69]
[1762019498078,2.16787339,185.09,185.03,2.69]
[1762019498378,2.16787339,185.08,185.03,2.69]
[1762019498579,2.16787339,185.07,185.03,2.69]
[1762019498778,2.16787339,185.06,185.03,2.69]
[1762019498976,1.28,185.1,185.03,2.69]
[1762019499172,2.1685481,185.09,185.03,2.69]
[1762019499476,2.1685481,185.08,185.03,2.69]
[1762019499678,2.1685481,185.07,185.03,2.69]
[1762019499973,2.1685481,185.06,185.03,2.69]
[1762019500178,1.28,185.1,185.03,2.69]
[1762019500369,2.15293298,185.09,185.03,2.69]
[1762019500569,2.15293298,185.08,185.04,2.91]
[1762019500772,2.10446479,185.16,185.04,2.91]
[1762019501975,2.10446479,185.16,185.08,2.91]
[1762019502574,6.1418,185.18,185.08,2.91]
[1762019502785,8.24626479,185.18,185.09,2.91]
[1762019502981,8.24626479,185.18,185.1,2.91]
[1762019503878,1.28,185.17,185.1,2.91]
[1762019508176,2.10446479,185.18,185.12,2.91]
[1762019509580,3.38446479,185.18,185.12,2.91]
[1762019512687,3.42148329,185.17,185.12,2.91]
[1762019512882,2.14148329,185.16,185.12,2.91]
[1762019513186,1.28,185.17,185.12,2.91]
[1762019513393,1.28,185.22,185.12,2.91]
[1762019513685,2.14194264,185.21,185.12,2.91]
[1762019513884,2.14194768,185.2,185.12,2.91]
[1762019514073,2.1419485,185.19,185.12,2.91]
[1762019514279,3.38446479,185.22,185.12,2.91]
[1762019514586,3.42123821,185.21,185.15,2.91]
[1762019514780,2.14123821,185.2,185.15,2.91]
[1762019514991,1.28,185.21,185.15,2.91]
[1762019515176,2.14134747,185.2,185.15,2.91]
[1762019515378,1.28,185.21,185.15,2.91]
[1762019515579,1.28,185.19,185.15,2.91]
[1762019515782,2.14066405,185.18,185.15,2.91]
[1762019515985,1.28,185.19,185.15,2.91]
[1762019517386,3.38446479,185.19,185.11,7.7732]
[1762019517593,1.28,185.17,185.11,2.91]
[1762019520487,2.10446479,185.19,185.11,2.91]
[1762019521085,2.13988031,185.18,185.11,2.91]
[1762019521286,6.96506479,185.22,185.12,2.91]
[1762019521287,2.10446479,185.22,185.12,2.91]
[1762019521496,2.14021788,185.21,185.12,2.91]
[1762019521791,2.14021788,185.21,185.09,2.10446479]
[1762019521792,1.28,185.24,185.16,2.91]
[1762019521991,2.1409069,185.23,185.16,2.91]
[1762019522181,2.1409069,185.22,185.16,2.91]
[1762019522498,1.28,185.24,185.18,2.91]
[1762019522685,2.14092758,185.23,185.18,2.91]